[Event "Titled Tuesday Blitz August 02 Late 2022"]
[White "Martinez Alcantara, Jose Eduardo"]
[Black "Izoria, Zviad"]
[WhiteFideId "3805662"]
[BlackFideId "13601733"]
[WhiteElo "2703"]
[BlackElo "2626"]
[Result "1-0"]
[Round "06"]
[TimeControl "180+1"]
[Date "2022.08.02"]
[WhiteClock "0:00:24"]
[BlackClock "0:00:13"]

1. e4 {[%clk 0:03:00]}  c5 {[%clk 0:02:59]} 2. Nf3 {[%clk 0:03:01]}  a6 {[%clk 0:02:59]} 3. c3 {[%clk 0:03:01]}  e6 {[%clk 0:02:59]} 4. d4 {[%clk 0:03:02]}  d5 {[%clk 0:03:00]} 5. e5 {[%clk 0:03:02]}  Bd7 {[%clk 0:02:59]} 6. Na3 {[%clk 0:02:59]}  cxd4 {[%clk 0:02:46]} 7. cxd4 {[%clk 0:02:59]}  Bb4+ {[%clk 0:02:43]} 8. Bd2 {[%clk 0:02:59]}  Qa5 {[%clk 0:02:42]} 9. Nc2 {[%clk 0:02:57]}  Bxd2+ {[%clk 0:02:41]} 10. Qxd2 {[%clk 0:02:58]}  Qxd2+ {[%clk 0:02:40]} 11. Kxd2 {[%clk 0:02:59]}  Ne7 {[%clk 0:02:36]} 12. a4 {[%clk 0:02:52]}  Nbc6 {[%clk 0:02:31]} 13. Bd3 {[%clk 0:02:51]}  f6 {[%clk 0:02:31]} 14. b4 {[%clk 0:02:42]}  Kf7 {[%clk 0:02:18]} 15. Rhe1 {[%clk 0:02:41]}  h6 {[%clk 0:02:07]} 16. h4 {[%clk 0:02:39]}  Rhc8 {[%clk 0:01:59]} 17. g4 {[%clk 0:02:11]}  Ng6 {[%clk 0:01:40]} 18. exf6 {[%clk 0:01:54]}  gxf6 {[%clk 0:01:38]} 19. g5 {[%clk 0:01:55]}  Nf4 {[%clk 0:01:36]} 20. gxf6 {[%clk 0:01:37]}  Nxd3 {[%clk 0:01:17]} 21. Kxd3 {[%clk 0:01:36]}  Kxf6 {[%clk 0:01:17]} 22. Kd2 {[%clk 0:01:30]}  Be8 {[%clk 0:01:04]} 23. Ne3 {[%clk 0:01:24]}  Bh5 {[%clk 0:00:51]} 24. b5 {[%clk 0:01:21]}  Na5 {[%clk 0:00:38]} 25. Ne5 {[%clk 0:01:22]}  Nb3+ {[%clk 0:00:37]} 26. Kd3 {[%clk 0:01:22]}  Nxa1 {[%clk 0:00:37]} 27. Rxa1 {[%clk 0:01:23]}  axb5 {[%clk 0:00:36]} 28. a5 {[%clk 0:01:23]}  b4 {[%clk 0:00:35]} 29. Nd7+ {[%clk 0:01:24]}  Ke7 {[%clk 0:00:34]} 30. Nb6 {[%clk 0:01:25]}  Rc3+ {[%clk 0:00:34]} 31. Kd2 {[%clk 0:01:25]}  Rf8 {[%clk 0:00:34]} 32. f4 {[%clk 0:01:13]}  Rxf4 {[%clk 0:00:33]} 33. Nexd5+ {[%clk 0:01:13]}  exd5 {[%clk 0:00:32]} 34. Nxd5+ {[%clk 0:01:14]}  Kd6 {[%clk 0:00:30]} 35. Nxf4 {[%clk 0:01:15]}  Bf7 {[%clk 0:00:27]} 36. a6 {[%clk 0:01:15]}  bxa6 {[%clk 0:00:26]} 37. Rxa6+ {[%clk 0:01:16]}  Rc6 {[%clk 0:00:26]} 38. Ra7 {[%clk 0:01:13]}  Rc7 {[%clk 0:00:26]} 39. Ra6+ {[%clk 0:01:11]}  Rc6 {[%clk 0:00:26]} 40. Ra8 {[%clk 0:00:33]}  b3 {[%clk 0:00:25]} 41. Rb8 {[%clk 0:00:34]}  Rc2+ {[%clk 0:00:25]} 42. Ke3 {[%clk 0:00:34]}  Rh2 {[%clk 0:00:23]} 43. d5 {[%clk 0:00:32]}  b2 {[%clk 0:00:21]} 44. Ke4 {[%clk 0:00:33]}  Rxh4 {[%clk 0:00:18]} 45. Rxb2 {[%clk 0:00:26]}  Bxd5+ {[%clk 0:00:17]} 46. Kf5 {[%clk 0:00:26]}  Bc6 {[%clk 0:00:16]} 47. Rd2+ {[%clk 0:00:26]}  Kc7 {[%clk 0:00:17]} 48. Rc2 {[%clk 0:00:24]}  Kd6 {[%clk 0:00:15]} 49. Rd2+ {[%clk 0:00:23]}  Ke7 {[%clk 0:00:15]} 50. Ng6+ {[%clk 0:00:23]}  Kf7 {[%clk 0:00:13]} 51. Nxh4 {[%clk 0:00:24]} 1-0


[Site "https://www.chess.com"]

[Event "Titled Tuesday Blitz August 02 Late 2022"]
[White "Navarrete Mendez, Gonzalo Alberto"]
[Black "Lin, Dachey"]
[WhiteFideId "5106850"]
[BlackFideId "2029650"]
[WhiteElo "2261"]
[BlackElo "2313"]
[Result "0-1"]
[Round "06"]
[TimeControl "180+1"]
[Date "2022.08.02"]
[WhiteClock "0:00:04"]
[BlackClock "0:00:25"]

1. e4 {[%clk 0:03:00]}  g6 {[%clk 0:03:00]} 2. d4 {[%clk 0:02:56]}  Bg7 {[%clk 0:03:01]} 3. Nc3 {[%clk 0:02:53]}  d5 {[%clk 0:03:02]} 4. Nf3 {[%clk 0:02:49]}  c6 {[%clk 0:03:01]} 5. h3 {[%clk 0:02:48]}  dxe4 {[%clk 0:03:01]} 6. Nxe4 {[%clk 0:02:49]}  Nf6 {[%clk 0:03:01]} 7. Bd3 {[%clk 0:02:48]}  O-O {[%clk 0:03:01]} 8. O-O {[%clk 0:02:45]}  Nbd7 {[%clk 0:03:02]} 9. c3 {[%clk 0:02:44]}  Nxe4 {[%clk 0:03:02]} 10. Bxe4 {[%clk 0:02:45]}  Nf6 {[%clk 0:03:02]} 11. Bc2 {[%clk 0:02:45]}  a5 {[%clk 0:03:02]} 12. Ne5 {[%clk 0:02:45]}  Be6 {[%clk 0:03:02]} 13. Re1 {[%clk 0:02:44]}  Qb6 {[%clk 0:02:59]} 14. Qf3 {[%clk 0:02:10]}  a4 {[%clk 0:02:43]} 15. a3 {[%clk 0:02:07]}  Bb3 {[%clk 0:02:34]} 16. Bd3 {[%clk 0:02:02]}  Rad8 {[%clk 0:02:26]} 17. Bg5 {[%clk 0:01:59]}  Bd5 {[%clk 0:02:23]} 18. Qe2 {[%clk 0:01:56]}  Rfe8 {[%clk 0:02:04]} 19. Nc4 {[%clk 0:01:41]}  Qc7 {[%clk 0:01:36]} 20. Ne5 {[%clk 0:01:39]}  Nd7 {[%clk 0:01:32]} 21. Bf4 {[%clk 0:01:17]}  Nxe5 {[%clk 0:01:21]} 22. Bxe5 {[%clk 0:01:17]}  Bxe5 {[%clk 0:01:22]} 23. Qxe5 {[%clk 0:01:18]}  Qxe5 {[%clk 0:01:01]} 24. Rxe5 {[%clk 0:01:18]}  f6 {[%clk 0:01:02]} 25. Re3 {[%clk 0:01:17]}  Bb3 {[%clk 0:01:00]} 26. Rae1 {[%clk 0:01:16]}  Kf7 {[%clk 0:01:00]} 27. f4 {[%clk 0:01:05]}  Rd7 {[%clk 0:00:59]} 28. Kf2 {[%clk 0:01:03]}  Red8 {[%clk 0:00:59]} 29. f5 {[%clk 0:00:57]}  c5 {[%clk 0:00:54]} 30. fxg6+ {[%clk 0:00:41]}  hxg6 {[%clk 0:00:54]} 31. Rg3 {[%clk 0:00:41]}  f5 {[%clk 0:00:45]} 32. Bb5 {[%clk 0:00:41]}  Rc7 {[%clk 0:00:45]} 33. dxc5 {[%clk 0:00:32]}  Rxc5 {[%clk 0:00:46]} 34. Rd3 {[%clk 0:00:27]}  Rdd5 {[%clk 0:00:36]} 35. Rxd5 {[%clk 0:00:20]}  Rxd5 {[%clk 0:00:37]} 36. Bf1 {[%clk 0:00:16]}  e5 {[%clk 0:00:37]} 37. Re2 {[%clk 0:00:16]}  Kf6 {[%clk 0:00:35]} 38. Ke3 {[%clk 0:00:16]}  Rd1 {[%clk 0:00:35]} 39. Rf2 {[%clk 0:00:14]}  g5 {[%clk 0:00:34]} 40. Be2 {[%clk 0:00:13]}  f4+ {[%clk 0:00:26]} 41. Kf3 {[%clk 0:00:14]}  Rd2 {[%clk 0:00:24]} 42. Bb5 {[%clk 0:00:10]}  Bd5+ {[%clk 0:00:24]} 43. Kg4 {[%clk 0:00:04]}  Rxf2 {[%clk 0:00:25]} 0-1


[Site "https://www.chess.com"]

[Event "Titled Tuesday Blitz August 02 Late 2022"]
[White "Nazari, Arad"]
[Black "Poltorak, Sebastian"]
[WhiteFideId "12577324"]
[BlackFideId "1199498"]
[WhiteElo "2129"]
[BlackElo "2104"]
[Result "1-0"]
[Round "06"]
[TimeControl "180+1"]
[Date "2022.08.02"]
[WhiteClock "0:02:21"]
[BlackClock "0:02:12"]

1. d4 {[%clk 0:03:00]}  Nf6 {[%clk 0:03:00]} 2. c4 {[%clk 0:03:01]}  g6 {[%clk 0:03:00]} 3. Nc3 {[%clk 0:03:01]}  d5 {[%clk 0:03:00]} 4. cxd5 {[%clk 0:03:02]}  Nxd5 {[%clk 0:03:00]} 5. e4 {[%clk 0:03:02]}  Nxc3 {[%clk 0:03:01]} 6. bxc3 {[%clk 0:03:03]}  Bg7 {[%clk 0:03:02]} 7. Bc4 {[%clk 0:03:01]}  c5 {[%clk 0:03:02]} 8. Ne2 {[%clk 0:03:01]}  Nc6 {[%clk 0:03:02]} 9. Be3 {[%clk 0:03:00]}  O-O {[%clk 0:03:03]} 10. O-O {[%clk 0:02:59]}  e6 {[%clk 0:03:03]} 11. Qd2 {[%clk 0:02:58]}  Qc7 {[%clk 0:03:03]} 12. Rac1 {[%clk 0:02:57]}  Rd8 {[%clk 0:03:03]} 13. h4 {[%clk 0:02:55]}  b6 {[%clk 0:03:00]} 14. h5 {[%clk 0:02:55]}  Ne5 {[%clk 0:02:59]} 15. Bb3 {[%clk 0:02:52]}  Bb7 {[%clk 0:02:55]} 16. f3 {[%clk 0:02:51]}  c4 {[%clk 0:02:49]} 17. Bc2 {[%clk 0:02:51]}  Nd7 {[%clk 0:02:42]} 18. h6 {[%clk 0:02:47]}  Bf6 {[%clk 0:02:40]} 19. Bg5 {[%clk 0:02:47]}  Rac8 {[%clk 0:02:35]} 20. Bxf6 {[%clk 0:02:42]}  Nxf6 {[%clk 0:02:36]} 21. Qg5 {[%clk 0:02:42]}  Qe7 {[%clk 0:02:31]} 22. Rfe1 {[%clk 0:02:37]}  b5 {[%clk 0:02:29]} 23. Rcd1 {[%clk 0:02:37]}  a5 {[%clk 0:02:23]} 24. Qxb5 {[%clk 0:02:36]}  Bc6 {[%clk 0:02:14]} 25. Qe5 {[%clk 0:02:26]}  Nd7 {[%clk 0:02:12]} 26. Qg7# {[%clk 0:02:21]} 1-0


[Site "https://www.chess.com"]

[Event "Titled Tuesday Blitz August 02 Late 2022"]
[White "Ohanyan, Emin"]
[Black "Korchmar, Vasiliy"]
[WhiteFideId "13312022"]
[BlackFideId "24131750"]
[WhiteElo "1927"]
[BlackElo "2370"]
[Result "1-0"]
[Round "06"]
[TimeControl "180+1"]
[Date "2022.08.02"]
[WhiteClock "0:00:04"]
[BlackClock "0:00:03"]

1. d4 {[%clk 0:03:00]}  d5 {[%clk 0:02:59]} 2. c4 {[%clk 0:03:00]}  c6 {[%clk 0:02:57]} 3. Nc3 {[%clk 0:03:00]}  Nf6 {[%clk 0:02:57]} 4. Nf3 {[%clk 0:03:00]}  e6 {[%clk 0:02:55]} 5. Bg5 {[%clk 0:02:53]}  Be7 {[%clk 0:02:54]} 6. e3 {[%clk 0:02:38]}  O-O {[%clk 0:02:54]} 7. Bd3 {[%clk 0:02:38]}  dxc4 {[%clk 0:02:52]} 8. Bxc4 {[%clk 0:02:38]}  b5 {[%clk 0:02:52]} 9. Bd3 {[%clk 0:02:36]}  Bb7 {[%clk 0:02:52]} 10. O-O {[%clk 0:02:32]}  Nbd7 {[%clk 0:02:50]} 11. Qc2 {[%clk 0:02:30]}  h6 {[%clk 0:02:50]} 12. Bh4 {[%clk 0:02:29]}  Rc8 {[%clk 0:02:43]} 13. Rfd1 {[%clk 0:02:08]}  c5 {[%clk 0:02:36]} 14. Bxb5 {[%clk 0:02:04]}  Bxf3 {[%clk 0:02:35]} 15. gxf3 {[%clk 0:02:04]}  cxd4 {[%clk 0:02:20]} 16. Rxd4 {[%clk 0:02:05]}  Nd5 {[%clk 0:02:20]} 17. Bxe7 {[%clk 0:01:49]}  Qxe7 {[%clk 0:02:21]} 18. Nxd5 {[%clk 0:01:47]}  Qg5+ {[%clk 0:01:50]} 19. Rg4 {[%clk 0:01:43]}  Qxd5 {[%clk 0:01:50]} 20. Qb3 {[%clk 0:00:45]}  Qxf3 {[%clk 0:01:44]} 21. Rg3 {[%clk 0:00:43]}  Qb7 {[%clk 0:01:44]} 22. Bxd7 {[%clk 0:00:41]}  Qxd7 {[%clk 0:01:45]} 23. Rd1 {[%clk 0:00:41]}  Qe7 {[%clk 0:01:39]} 24. Qa4 {[%clk 0:00:36]}  Rfd8 {[%clk 0:01:27]} 25. Rxd8+ {[%clk 0:00:36]}  Rxd8 {[%clk 0:01:28]} 26. Qe4 {[%clk 0:00:35]}  Qf6 {[%clk 0:01:25]} 27. Qb7 {[%clk 0:00:27]}  Rd2 {[%clk 0:01:15]} 28. Qa8+ {[%clk 0:00:20]}  Kh7 {[%clk 0:01:15]} 29. Qe4+ {[%clk 0:00:21]}  g6 {[%clk 0:01:14]} 30. Rf3 {[%clk 0:00:21]}  Qg5+ {[%clk 0:01:09]} 31. Kf1 {[%clk 0:00:21]}  Rd1+ {[%clk 0:00:40]} 32. Ke2 {[%clk 0:00:21]}  Rd7 {[%clk 0:00:41]} 33. Qc6 {[%clk 0:00:19]}  Qd8 {[%clk 0:00:35]} 34. Qc2 {[%clk 0:00:08]}  Qa5 {[%clk 0:00:31]} 35. a3 {[%clk 0:00:07]}  Qh5 {[%clk 0:00:23]} 36. Qc6 {[%clk 0:00:07]}  Rd5 {[%clk 0:00:21]} 37. e4 {[%clk 0:00:04]}  Rb5 {[%clk 0:00:20]} 38. b4 {[%clk 0:00:02]}  Re5 {[%clk 0:00:09]} 39. Ke3 {[%clk 0:00:02]}  g5 {[%clk 0:00:08]} 40. Qb7 {[%clk 0:00:02]}  Kg7 {[%clk 0:00:05]} 41. Qc7 {[%clk 0:00:02]}  g4 {[%clk 0:00:04]} 42. Rxf7+ {[%clk 0:00:03]}  Qxf7 {[%clk 0:00:02]} 43. Qxe5+ {[%clk 0:00:03]}  Kg6 {[%clk 0:00:03]} 44. Qf4 {[%clk 0:00:04]} 1-0


[Site "https://www.chess.com"]

[Event "Titled Tuesday Blitz August 02 Late 2022"]
[White "Perera Alfonso, Rene Humberto"]
[Black "Awatramani, Janak"]
[WhiteFideId "3514722"]
[BlackFideId "2608359"]
[WhiteElo "2313"]
[BlackElo "2757"]
[Result "0-1"]
[Round "06"]
[TimeControl "180+1"]
[Date "2022.08.02"]
[WhiteClock "0:00:25"]
[BlackClock "0:01:22"]

1. e4 {[%clk 0:03:00]}  e6 {[%clk 0:02:59]} 2. d4 {[%clk 0:02:59]}  b6 {[%clk 0:02:57]} 3. Nc3 {[%clk 0:02:59]}  Bb7 {[%clk 0:02:57]} 4. Nf3 {[%clk 0:03:00]}  Nf6 {[%clk 0:02:57]} 5. Bd3 {[%clk 0:03:00]}  d5 {[%clk 0:02:57]} 6. exd5 {[%clk 0:02:57]}  Nxd5 {[%clk 0:02:58]} 7. O-O {[%clk 0:02:56]}  Nxc3 {[%clk 0:02:58]} 8. bxc3 {[%clk 0:02:57]}  Nd7 {[%clk 0:02:59]} 9. Re1 {[%clk 0:02:57]}  Be7 {[%clk 0:03:00]} 10. Qe2 {[%clk 0:02:56]}  O-O {[%clk 0:02:59]} 11. Bf4 {[%clk 0:02:56]}  Nf6 {[%clk 0:02:58]} 12. c4 {[%clk 0:02:56]}  Bxf3 {[%clk 0:02:53]} 13. Qxf3 {[%clk 0:02:56]}  Qxd4 {[%clk 0:02:53]} 14. Bxc7 {[%clk 0:02:51]}  Rac8 {[%clk 0:02:48]} 15. Be5 {[%clk 0:02:39]}  Qg4 {[%clk 0:02:48]} 16. Qxg4 {[%clk 0:02:27]}  Nxg4 {[%clk 0:02:47]} 17. Bg3 {[%clk 0:02:28]}  Rfd8 {[%clk 0:02:44]} 18. h3 {[%clk 0:02:25]}  Nf6 {[%clk 0:02:41]} 19. a4 {[%clk 0:02:25]}  Bb4 {[%clk 0:02:33]} 20. Reb1 {[%clk 0:02:22]}  a5 {[%clk 0:02:33]} 21. Rd1 {[%clk 0:02:18]}  Nd7 {[%clk 0:02:32]} 22. Bf1 {[%clk 0:02:12]}  f6 {[%clk 0:02:21]} 23. Rd3 {[%clk 0:02:07]}  Kf7 {[%clk 0:02:21]} 24. Rad1 {[%clk 0:02:04]}  Ke7 {[%clk 0:02:20]} 25. Rb1 {[%clk 0:01:59]}  Nc5 {[%clk 0:02:15]} 26. Rxd8 {[%clk 0:01:57]}  Rxd8 {[%clk 0:02:02]} 27. Bc7 {[%clk 0:01:54]}  Rd2 {[%clk 0:01:59]} 28. c3 {[%clk 0:01:02]}  Bxc3 {[%clk 0:01:54]} 29. Bxb6 {[%clk 0:01:02]}  Nxa4 {[%clk 0:01:50]} 30. Be3 {[%clk 0:01:02]}  Rb2 {[%clk 0:01:45]} 31. Ra1 {[%clk 0:00:57]}  Rb4 {[%clk 0:01:44]} 32. Rc1 {[%clk 0:00:53]}  e5 {[%clk 0:01:36]} 33. c5 {[%clk 0:00:47]}  Kd7 {[%clk 0:01:32]} 34. Bd3 {[%clk 0:00:46]}  Bd4 {[%clk 0:01:27]} 35. Bxd4 {[%clk 0:00:39]}  exd4 {[%clk 0:01:22]} 36. c6+ {[%clk 0:00:37]}  Kc7 {[%clk 0:01:22]} 37. Bxh7 {[%clk 0:00:38]}  Nc3 {[%clk 0:01:22]} 38. Rc2 {[%clk 0:00:33]}  a4 {[%clk 0:01:22]} 39. Bg8 {[%clk 0:00:32]}  a3 {[%clk 0:01:22]} 40. Kh2 {[%clk 0:00:32]}  Rb2 {[%clk 0:01:21]} 41. Rc1 {[%clk 0:00:30]}  a2 {[%clk 0:01:21]} 42. Bxa2 {[%clk 0:00:26]}  Rxa2 {[%clk 0:01:22]} 43. Kg3 {[%clk 0:00:25]}  Ne2+ {[%clk 0:01:22]} 0-1


[Site "https://www.chess.com"]

[Event "Titled Tuesday Blitz August 02 Late 2022"]
[White "Riehle, Marco"]
[Black "Babazada, Khazar"]
[WhiteFideId "12904392"]
[BlackFideId "13413554"]
[WhiteElo "2462"]
[BlackElo "2409"]
[Result "0-1"]
[Round "06"]
[TimeControl "180+1"]
[Date "2022.08.02"]
[WhiteClock "0:00:22"]
[BlackClock "0:00:13"]

1. e4 {[%clk 0:03:00]}  Nf6 {[%clk 0:02:59]} 2. e5 {[%clk 0:03:00]}  Nd5 {[%clk 0:03:00]} 3. Nc3 {[%clk 0:03:01]}  Nb6 {[%clk 0:03:00]} 4. d4 {[%clk 0:03:00]}  d6 {[%clk 0:03:00]} 5. Nf3 {[%clk 0:03:01]}  g6 {[%clk 0:03:00]} 6. Bf4 {[%clk 0:03:00]}  Bg7 {[%clk 0:03:01]} 7. h4 {[%clk 0:03:00]}  h5 {[%clk 0:03:00]} 8. Qd2 {[%clk 0:02:59]}  O-O {[%clk 0:03:01]} 9. O-O-O {[%clk 0:02:58]}  Bg4 {[%clk 0:03:01]} 10. Be2 {[%clk 0:02:58]}  Nc6 {[%clk 0:03:00]} 11. Rhe1 {[%clk 0:02:22]}  a5 {[%clk 0:02:56]} 12. Kb1 {[%clk 0:02:18]}  a4 {[%clk 0:02:57]} 13. a3 {[%clk 0:02:14]}  Ra5 {[%clk 0:02:52]} 14. Nb5 {[%clk 0:02:11]}  Bxf3 {[%clk 0:02:48]} 15. Bxf3 {[%clk 0:02:10]}  Rxb5 {[%clk 0:02:46]} 16. Qd3 {[%clk 0:02:03]}  Ra5 {[%clk 0:02:43]} 17. g4 {[%clk 0:01:57]}  dxe5 {[%clk 0:02:41]} 18. Bd2 {[%clk 0:01:52]}  Ra8 {[%clk 0:02:30]} 19. gxh5 {[%clk 0:01:52]}  Qxd4 {[%clk 0:02:29]} 20. Qf1 {[%clk 0:01:51]}  Qxh4 {[%clk 0:02:23]} 21. Qg2 {[%clk 0:01:50]}  Rad8 {[%clk 0:02:02]} 22. Rh1 {[%clk 0:01:47]}  Qf6 {[%clk 0:01:59]} 23. Be4 {[%clk 0:01:47]}  Nc4 {[%clk 0:01:52]} 24. Bg5 {[%clk 0:01:42]}  Qe6 {[%clk 0:01:52]} 25. hxg6 {[%clk 0:01:40]}  f5 {[%clk 0:01:52]} 26. Rxd8 {[%clk 0:01:33]}  Rxd8 {[%clk 0:01:53]} 27. Qh3 {[%clk 0:01:32]}  Nd4 {[%clk 0:01:44]} 28. Bd3 {[%clk 0:01:29]}  e4 {[%clk 0:01:39]} 29. Qh7+ {[%clk 0:01:25]}  Kf8 {[%clk 0:01:39]} 30. Bxc4 {[%clk 0:01:18]}  Qxc4 {[%clk 0:01:40]} 31. Bxe7+ {[%clk 0:01:18]}  Kxe7 {[%clk 0:01:24]} 32. Qxg7+ {[%clk 0:01:18]}  Kd6 {[%clk 0:01:24]} 33. c3 {[%clk 0:01:11]}  Rg8 {[%clk 0:00:38]} 34. Qxd4+ {[%clk 0:01:07]}  Qxd4 {[%clk 0:00:38]} 35. cxd4 {[%clk 0:01:08]}  Rxg6 {[%clk 0:00:38]} 36. Rh5 {[%clk 0:01:04]}  Ke6 {[%clk 0:00:36]} 37. d5+ {[%clk 0:01:00]}  Ke5 {[%clk 0:00:36]} 38. Rh7 {[%clk 0:00:59]}  f4 {[%clk 0:00:31]} 39. Rxc7 {[%clk 0:00:58]}  f3 {[%clk 0:00:32]} 40. Kc2 {[%clk 0:00:48]}  Kd4 {[%clk 0:00:23]} 41. Rf7 {[%clk 0:00:36]}  Rg2 {[%clk 0:00:20]} 42. d6 {[%clk 0:00:37]}  Rxf2+ {[%clk 0:00:20]} 43. Kb1 {[%clk 0:00:37]}  Ke5 {[%clk 0:00:20]} 44. d7 {[%clk 0:00:37]}  Rd2 {[%clk 0:00:21]} 45. Kc1 {[%clk 0:00:37]}  Rd6 {[%clk 0:00:20]} 46. Kc2 {[%clk 0:00:37]}  Kd4 {[%clk 0:00:18]} 47. Kd2 {[%clk 0:00:33]}  e3+ {[%clk 0:00:19]} 48. Ke1 {[%clk 0:00:33]}  Ke4 {[%clk 0:00:19]} 49. Re7+ {[%clk 0:00:33]}  Kd3 {[%clk 0:00:17]} 50. Rf7 {[%clk 0:00:33]}  f2+ {[%clk 0:00:16]} 51. Kf1 {[%clk 0:00:34]}  Kd2 {[%clk 0:00:14]} 52. Re7 {[%clk 0:00:34]}  b5 {[%clk 0:00:11]} 53. Kg2 {[%clk 0:00:25]}  Ke2 {[%clk 0:00:10]} 54. Rf7 {[%clk 0:00:25]}  Rxd7 {[%clk 0:00:11]} 55. Rxd7 {[%clk 0:00:25]}  f1=Q+ {[%clk 0:00:11]} 56. Kg3 {[%clk 0:00:26]}  Qf3+ {[%clk 0:00:11]} 57. Kh4 {[%clk 0:00:23]}  Qf4+ {[%clk 0:00:12]} 58. Kh3 {[%clk 0:00:22]}  Qf5+ {[%clk 0:00:13]} 0-1


[Site "https://www.chess.com"]

[Event "Titled Tuesday Blitz August 02 Late 2022"]
[White "Rustemov, Alexander"]
[Black "Barp, Alberto"]
[WhiteFideId "4119002"]
[BlackFideId "872555"]
[WhiteElo "2760"]
[BlackElo "2229"]
[Result "1-0"]
[Round "06"]
[TimeControl "180+1"]
[Date "2022.08.02"]
[WhiteClock "0:01:13"]
[BlackClock "0:00:49"]

1. d4 {[%clk 0:03:00]}  d5 {[%clk 0:03:00]} 2. c4 {[%clk 0:02:58]}  e6 {[%clk 0:03:00]} 3. Nc3 {[%clk 0:02:58]}  c6 {[%clk 0:03:00]} 4. e3 {[%clk 0:02:57]}  Bd6 {[%clk 0:03:00]} 5. Qc2 {[%clk 0:02:52]}  f5 {[%clk 0:02:59]} 6. Bd3 {[%clk 0:02:52]}  Nf6 {[%clk 0:02:58]} 7. Nge2 {[%clk 0:02:50]}  O-O {[%clk 0:02:56]} 8. f3 {[%clk 0:02:47]}  Na6 {[%clk 0:02:44]} 9. a3 {[%clk 0:02:46]}  Nc7 {[%clk 0:02:36]} 10. Bd2 {[%clk 0:02:44]}  b6 {[%clk 0:02:35]} 11. e4 {[%clk 0:02:30]}  Be7 {[%clk 0:02:18]} 12. O-O {[%clk 0:02:06]}  Ba6 {[%clk 0:02:14]} 13. cxd5 {[%clk 0:01:59]}  Bxd3 {[%clk 0:02:14]} 14. Qxd3 {[%clk 0:01:59]}  fxe4 {[%clk 0:02:10]} 15. fxe4 {[%clk 0:01:55]}  cxd5 {[%clk 0:02:11]} 16. e5 {[%clk 0:01:55]}  Nd7 {[%clk 0:02:10]} 17. Nf4 {[%clk 0:01:49]}  Qe8 {[%clk 0:02:03]} 18. Qh3 {[%clk 0:01:48]}  Bg5 {[%clk 0:02:01]} 19. Nce2 {[%clk 0:01:42]}  Rc8 {[%clk 0:01:56]} 20. Rf3 {[%clk 0:01:41]}  Nb8 {[%clk 0:01:49]} 21. Raf1 {[%clk 0:01:40]}  Nc6 {[%clk 0:01:48]} 22. Be3 {[%clk 0:01:32]}  h6 {[%clk 0:01:28]} 23. Qg4 {[%clk 0:01:31]}  Kh7 {[%clk 0:01:14]} 24. h4 {[%clk 0:01:30]}  Bxf4 {[%clk 0:01:14]} 25. Nxf4 {[%clk 0:01:31]}  Rd8 {[%clk 0:01:08]} 26. h5 {[%clk 0:01:26]}  Rd7 {[%clk 0:01:08]} 27. Ng6 {[%clk 0:01:18]}  Rxf3 {[%clk 0:01:08]} 28. Qxf3 {[%clk 0:01:15]}  Ne7 {[%clk 0:00:48]} 29. Nf8+ {[%clk 0:01:14]}  Kh8 {[%clk 0:00:48]} 30. Nxd7 {[%clk 0:01:13]}  Qxd7 {[%clk 0:00:49]} 31. Qf8+ {[%clk 0:01:12]}  Kh7 {[%clk 0:00:49]} 32. Rf7 {[%clk 0:01:13]} 1-0


[Site "https://www.chess.com"]

[Event "Titled Tuesday Blitz August 02 Late 2022"]
[White "Salem, A.R. Saleh"]
[Black "Alekseenko, Kirill"]
[WhiteFideId "9301348"]
[BlackFideId "4135539"]
[WhiteElo "2679"]
[BlackElo "2682"]
[Result "0-1"]
[Round "06"]
[TimeControl "180+1"]
[Date "2022.08.02"]
[WhiteClock "0:00:01"]
[BlackClock "0:00:11"]

1. Nf3 {[%clk 0:02:55]}  d5 {[%clk 0:02:58]} 2. g3 {[%clk 0:02:54]}  Nd7 {[%clk 0:02:58]} 3. d4 {[%clk 0:02:54]}  Nb6 {[%clk 0:02:59]} 4. Bg2 {[%clk 0:02:51]}  Bf5 {[%clk 0:02:59]} 5. Nc3 {[%clk 0:02:51]}  e6 {[%clk 0:02:57]} 6. Nh4 {[%clk 0:02:49]}  Nf6 {[%clk 0:02:57]} 7. Nxf5 {[%clk 0:02:42]}  exf5 {[%clk 0:02:58]} 8. Qd3 {[%clk 0:02:39]}  g6 {[%clk 0:02:58]} 9. a4 {[%clk 0:02:35]}  a5 {[%clk 0:02:55]} 10. O-O {[%clk 0:02:30]}  Be7 {[%clk 0:01:59]} 11. Bh6 {[%clk 0:02:26]}  Bf8 {[%clk 0:01:59]} 12. Bf4 {[%clk 0:02:25]}  Bd6 {[%clk 0:01:53]} 13. Bg5 {[%clk 0:01:57]}  Be7 {[%clk 0:01:53]} 14. f3 {[%clk 0:01:09]}  O-O {[%clk 0:01:52]} 15. Bh6 {[%clk 0:01:08]}  Re8 {[%clk 0:01:52]} 16. e4 {[%clk 0:01:08]}  fxe4 {[%clk 0:01:24]} 17. fxe4 {[%clk 0:01:09]}  dxe4 {[%clk 0:01:25]} 18. Nxe4 {[%clk 0:01:10]}  Nxe4 {[%clk 0:01:23]} 19. Bxe4 {[%clk 0:01:08]}  c6 {[%clk 0:01:20]} 20. Rxf7 {[%clk 0:00:41]}  Kxf7 {[%clk 0:01:12]} 21. Rf1+ {[%clk 0:00:34]}  Bf6 {[%clk 0:00:42]} 22. Qb3+ {[%clk 0:00:13]}  Re6 {[%clk 0:00:41]} 23. c3 {[%clk 0:00:13]}  Nd7 {[%clk 0:00:28]} 24. Bg2 {[%clk 0:00:05]}  Qb6 {[%clk 0:00:25]} 25. Qc4 {[%clk 0:00:04]}  Re8 {[%clk 0:00:20]} 26. Bh3 {[%clk 0:00:04]}  Qa6 {[%clk 0:00:21]} 27. Qb3 {[%clk 0:00:04]}  c5 {[%clk 0:00:15]} 28. d5 {[%clk 0:00:02]}  Re1 {[%clk 0:00:13]} 29. d6+ {[%clk 0:00:02]}  c4 {[%clk 0:00:13]} 30. Qb5 {[%clk 0:00:01]}  Rxf1+ {[%clk 0:00:11]} 31. Bxf1 {[%clk 0:00:01]}  Qxb5 {[%clk 0:00:11]} 32. axb5 {[%clk 0:00:02]}  Ne5 {[%clk 0:00:11]} 33. Bf4 {[%clk 0:00:01]}  Ke6 {[%clk 0:00:11]} 0-1


[Site "https://www.chess.com"]